Cogmind - Beta 14 @@@ ROGUE MODE // 2025.03.28 @ 23:05:18 Player: Silfurdreki Result: Destroyed by H-88 Terminator with Heavy Machine Gun Performance ------------- Evolutions (8) 4000 Regions Visited (24) 4800 Robots Destroyed (39) 195 Value Destroyed (1365) 1365 Prototype IDs (54) 1080 Alien Tech Used (2) 400 Bonus (2139) 2139 TOTAL SCORE: 13979 Bonus ------- Follower Combat Kills 39 Met Data Miner 300 Met Zhirov 300 Met Warlord at Base 500 MAIN.C Attacked Warlord 500 Scanned by Researcher 500 Cogmind --------- Core Integrity 0/1450 Matter 268/300 Energy 190/190 System Corruption 1% Temperature Cool (0) Movement Core (350) Ox6 Location -2/Testing Parts ------- > --- POWER (2) -------- Light Quantum Reactor > --- PROPULSION (5) --- (None) > --- UTILITY (14) ----- Improved Kinecellerator > --- WEAPON (2) ------- (None) > --- INVENTORY (5) ---- Light Antimatter Reactor Cooled Nuclear Pulse Thruster Q-thruster Railgun Peak State ------------ > --- POWER ------------ Fusion Compressor Micro Fission Core > --- PROPULSION ------- Cooled Nuclear Pulse Thruster Field Propulsion Array Improved Diametric Drive Improved Diametric Drive > --- UTILITY ---------- Enhanced Optical Array Advanced Sensor Array Advanced Signal Interpreter 0b10 Decoder Chip [Generic] Improved Reaction Control System Experimental Cloaking Device Layered Light Armor Plating Makeshift Ablative Armor Advanced Hacking Suite Advanced Hacking Suite System Shield System Shield > --- WEAPON ----------- Greatsword > --- INVENTORY -------- Light Antimatter Reactor Cooled Nuclear Pulse Thruster Advanced ECM Suite [Rating: 122] Favorites ----------- Power Micro Fission Core Engine Light Angular Momentum Engine Power Core Micro Fission Core Reactor Light Antimatter Reactor Propulsion Cooled Nuclear Pulse Thruster Leg Aluminum Leg Hover Unit Combat Gravmag System Flight Unit Cooled Nuclear Pulse Thruster Utility System Shield Device Advanced ECM Suite Storage Small Storage Unit Processor Enhanced Optical Array Hackware System Shield Protection Makeshift Ablative Armor Weapon Heavy Flail Energy Gun EM Pulse Gun Energy Cannon Enhanced Nova Cannon Ballistic Gun Enhanced Autogun Ballistic Cannon Improved Light Cannon Launcher Tiamat Missile Launcher Special Weapon RU-N14's Throwing Claymores v3 Impact Weapon Heavy Flail Slashing Weapon Makeshift Axe Build | -11 -10 -10 -9 -9 -8 -7 -6 -6 -6 -6 -5 -5 -5 -5 -5 -4 -4 -4 -4 -4 -3 -3 -2 -2 ------- Run | Yrd Mat Min Mat Min Mat Fac Fac Low Low Dat Pro Fac Upp Upp Zhi Pro Fac Upp Upp War Pro Res Res Tes Slots Evolved 16 | . . . 2 . 2 2 2 . . . . 2 . . . . 2 . . . . 2 2 . Power 1 | . . . . . . . 1 . . . . . . . . . . . . . . . . . Propulsion 3 | . . . . . 1 1 . . . . . . . . . . . . . . . 1 . . Utility 12 | . . . 2 . 1 1 1 . . . . 2 . . . . 2 . . . . 1 2 . Weapon . | . . . . . . . . . . . . . . . . . . . . . . . . . Parts Attached 155 | 6 5 . 12 7 10 12 11 . . . 3 8 . 1 14 1 5 1 1 15 . 8 3 32 Power 29 | 1 1 . 3 1 1 1 3 . . . 1 2 . 1 . . 1 . . 4 . 3 . 6 Engine 10 | 1 . . 2 1 1 . 2 . . . 1 . . 1 . . . . . . . . . 1 Core 13 | . 1 . 1 . . 1 1 . . . . 2 . . . . 1 . . 3 . 2 . 1 Reactor 6 | . . . . . . . . . . . . . . . . . . . . 1 . 1 . 4 Propulsion 58 | 2 . . 2 5 4 4 4 . . . 1 1 . . 9 1 2 . . 3 . 3 2 15 Treads . | . . . . . . . . . . . . . . . . . . . . . . . . . Leg 6 | 2 . . . . . . . . . . . . . . . . . . . . . . . 4 Wheel . | . . . . . . . . . . . . . . . . . . . . . . . . . Hover 12 | . . . . . . . . . . . . . . . 5 . . . . . . 1 2 4 Flight 40 | . . . 2 5 4 4 4 . . . 1 1 . . 4 1 2 . . 3 . 2 . 7 Utility 49 | 1 2 . 5 1 4 4 4 . . . 1 4 . . 5 . 2 1 . 6 . 2 1 6 Device 23 | . 2 . 3 . 2 1 1 . . . . 1 . . 3 . 1 1 . 4 . 1 . 3 Storage 4 | 1 . . . . . . . . . . . . . . 1 . . . . . . . 1 1 Processor 8 | . . . 2 . 1 . 2 . . . 1 . . . . . . . . . . . . 2 Hackware 6 | . . . . . 1 . 1 . . . . 3 . . 1 . . . . . . . . . Protection 8 | . . . . 1 . 3 . . . . . . . . . . 1 . . 2 . 1 . . Artifact . | . . . . . . . . . . . . . . . . . . . . . . . . . Weapon 19 | 2 2 . 2 . 1 3 . . . . . 1 . . . . . . 1 2 . . . 5 Energy Gun 2 | 2 . . . . . . . . . . . . . . . . . . . . . . . . Energy Cannon 2 | . . . . . . . . . . . . . . . . . . . . . . . . 2 Ballistic Gun 2 | . . . . . . 1 . . . . . . . . . . . . . . . . . 1 Ballistic Cannon 3 | . 2 . . . . . . . . . . . . . . . . . . . . . . 1 Launcher 1 | . . . . . . . . . . . . . . . . . . . . . . . . 1 Special Weapon 1 | . . . . . . . . . . . . . . . . . . . . 1 . . . . Impact Weapon 4 | . . . . . 1 2 . . . . . 1 . . . . . . . . . . . . Slashing Weapon 4 | . . . 2 . . . . . . . . . . . . . . . 1 1 . . . . Piercing Weapon . | . . . . . . . . . . . . . . . . . . . . . . . . . Special Melee Weapon . | . . . . . . . . . . . . . . . . . . . . . . . . . Unidentified Prototypes 19 | . . . 1 . 1 1 . . . . . . . . 5 . . . . 7 . . . 4 Parts Lost 46 | . . . . 8 . 4 . . . . 3 . . . . 1 . . . . . 6 . 24 Power 9 | . . . . 1 . 1 . . . . . . . . . 1 . . . . . 2 . 4 Propulsion 20 | . . . . 5 . 2 . . . . 2 . . . . . . . . . . 1 . 10 Utility 11 | . . . . 2 . 1 . . . . 1 . . . . . . . . . . 2 . 5 Weapon 6 | . . . . . . . . . . . . . . . . . . . . . . 1 . 5 Highest Loss Streak 10 | . . . . 7 . 2 . . . . 3 . . . . 1 . . . . . 4 . 10 To Critical Strikes . | . . . . . . . . . . . . . . . . . . . . . . . . . Average Slot Usage (%) 78 | . 98 100 85 70 87 92 81 86 86 86 84 83 88 88 85 82 84 88 86 86 89 62 9 23 Engine 2 | . 4 . 10 6 9 . 4 . . . . 1 . 5 5 . . . . . . . . . Core 5 | . 9 14 . 4 . 6 1 6 6 6 5 5 11 5 5 5 9 10 10 10 10 5 . . Leg 3 | . 28 28 4 . . . . . . . . . . . . . . . . . . . . 1 Flight 16 | . . . 16 19 27 29 22 26 26 26 24 17 17 17 14 17 14 15 15 14 15 13 . 3 Device 10 | . 13 14 24 7 9 7 12 13 13 13 12 8 11 11 10 11 11 14 12 12 15 10 . . Storage 1 | . 14 14 2 . . . . . . . . . . . . . . . . . . . . . Processor 15 | . . . 14 22 25 23 20 20 20 20 20 19 17 17 17 17 15 15 15 15 15 10 . 3 Hackware 10 | . . . . . 8 7 13 13 13 13 13 23 23 23 23 23 21 21 21 21 21 13 . . Protection 1 | . . . . . . 4 . . . . . . . . . . 5 5 5 4 5 4 . . Ballistic Cannon 3 | . 25 28 4 . . . . . . . . . . . . . . . . . . . . 2 Impact Weapon 3 | . . . . . 4 6 6 6 6 6 6 4 5 5 5 5 5 5 2 . . . . . Slashing Weapon 1 | . . . 6 11 4 . . . . . . . . . . . . . 2 5 5 2 . . Peak Build Rating 122 | 6 11 12 19 19 25 41 55 55 55 55 55 80 80 81 87 84 94 98 98 112 112 122 20 82 Average Rating 49 | 4 10 11 15 13 20 37 48 55 55 55 54 71 80 80 78 79 91 97 97 104 112 83 14 41 On Entrance 53 | . 6 11 12 19 11 25 35 55 55 55 55 53 80 80 81 84 79 93 98 98 112 112 7 20 Naked Turns 53 | . . . . . . . . . . . . . . . . . . . . . . 53 . . Heaviest Build 49 | 14 19 19 24 10 12 17 17 17 17 17 17 25 22 22 21 21 27 27 27 27 27 31 . 49 Greatest Support 57 | 20 20 20 20 10 14 22 22 22 22 22 22 25 25 25 33 25 27 27 27 29 29 35 37 57 Greatest Overweight (x) 8 | 4 . . 4 3 . . . . . . . . . . 6 . 1 . . 1 . 1 . 8 Average Overweight (x) . | . . . . . . . . . . . . . . . . . . . . . . . . . Largest Inventory Capacity 15 | 8 8 8 8 5 5 5 5 5 5 5 5 5 5 5 5 5 5 5 5 5 5 5 15 8 Average Capacity 5 | 7 8 8 5 5 5 5 5 5 5 5 5 5 5 5 5 5 5 5 5 5 5 5 5 5 Most Carried 8 | 2 8 8 7 5 5 5 5 5 5 5 5 4 5 5 5 5 5 5 5 5 5 4 3 5 Average Carried 4 | 1 5 7 5 4 4 4 3 4 5 5 4 2 4 4 4 5 4 4 4 4 5 2 2 3 Final Capacity 8 | 8 8 8 5 5 5 5 5 5 5 5 5 5 5 5 5 5 5 5 5 5 5 5 5 5 Final Carried 8 | 2 8 8 5 5 5 4 5 5 5 5 3 4 5 5 5 5 5 5 5 5 5 2 3 4 Class Distribution -------------------- 25% | Mutant 21% | Hacker-Ninja 19% | Hacker-Sprinter 10% | Sprinter 8% | Hacker-Scout 7% | Scavenger-Mutant 3% | Scout Dominant Class ---------------- Mutant | -10/Materials Mutant | -10/Mines Scout | -9/Materials Scavenger-Mutant | -9/Mines Scavenger-Mutant | -8/Materials Sprinter | -7/Factory Hacker-Sprinter | -6/Factory Hacker-Sprinter | -6/Lower Caves Hacker-Sprinter | -6/Lower Caves Hacker-Sprinter | -6/Data Miner Hacker-Sprinter | -5/Proximity Caves Hacker-Ninja | -5/Factory Hacker-Ninja | -5/Upper Caves Hacker-Ninja | -5/Upper Caves Hacker-Ninja | -5/Zhirov Hacker-Ninja | -4/Proximity Caves Hacker-Scout | -4/Factory Hacker-Ninja | -4/Upper Caves Hacker-Scout | -4/Upper Caves Hacker-Ninja | -4/Warlord Hacker-Ninja | -3/Proximity Caves Hacker-Ninja | -3/Research Mutant | -2/Research Mutant | -2/Testing Resources | -11 -10 -10 -9 -9 -8 -7 -6 -6 -6 -6 -5 -5 -5 -5 -5 -4 -4 -4 -4 -4 -3 -3 -2 -2 ----------- Run | Yrd Mat Min Mat Min Mat Fac Fac Low Low Dat Pro Fac Upp Upp Zhi Pro Fac Upp Upp War Pro Res Res Tes Matter Collected 2382 | 203 195 24 105 85 49 1 174 90 . . . 45 68 10 160 . 68 10 . 246 . 3 . 846 Remotely . | . . . . . . . . . . . . . . . . . . . . . . . . . Salvage Created 2129 | . 300 55 27 180 49 . 174 . . . 50 45 172 . 306 . 42 . . . . . . 729 Parts 66 | . 22 3 3 12 1 . 1 . . . 1 . 2 . 1 . . . . . . . . 20 Haulers Intercepted . | . . . . . . . . . . . . . . . . . . . . . . . . . Recyclers Shooed . | . . . . . . . . . . . . . . . . . . . . . . . . . Parts Field Recycled . | . . . . . . . . . . . . . . . . . . . . . . . . . Retrieved Matter . | . . . . . . . . . . . . . . . . . . . . . . . . . Parts Self-Destructed 3 | . . . . . . . . . . . 1 . 2 . . . . . . . . . . . Prevented . | . . . . . . . . . . . . . . . . . . . . . . . . . Kills | -11 -10 -10 -9 -9 -8 -7 -6 -6 -6 -6 -5 -5 -5 -5 -5 -4 -4 -4 -4 -4 -3 -3 -2 -2 ------- Run | Yrd Mat Min Mat Min Mat Fac Fac Low Low Dat Pro Fac Upp Upp Zhi Pro Fac Upp Upp War Pro Res Res Tes Combat Hostiles Destroyed 25 | . 7 2 . 8 1 . . . . . . . . . . . . . . . . . . 7 Melee 9 | . . . . 8 1 . . . . . . . . . . . . . . . . . . . Cannons 14 | . 7 2 . . . . . . . . . . . . . . . . . . . . . 5 AOE 2 | . . . . . . . . . . . . . . . . . . . . . . . . 2 Classes Destroyed 9 | . 2 . 1 1 2 . . . . . . . . . . . . . . . . . . 3 Worker 1 | . . . . . . . . . . . . . . . . . . . . . . . . 1 Builder 2 | . . . . . 1 . . . . . . . . . . . . . . . . . . 1 Recycler 3 | . 1 . . . . . 1 . . . . . . . . . . . . . . . . 1 Operator 3 | . . . . . 1 . 1 . . . . 1 . . . . . . . . . . . . Watcher 4 | . . . 1 . . . 1 . . . . 1 . . . . 1 . . . . . . . Swarmer 7 | . . . . 6 1 . . . . . . . . . . . . . . . . . . . Grunt 13 | . 7 2 . 2 . . . . . . . . . . . . . . . . . . . 2 Researcher 1 | . . . . . . . . . . . . . . . . . . . . . . . . 1 Hunter 5 | . . . . . . . . . . . . . . . . . . . . . . . . 5 Best Kill Streak 5 | . 5 2 1 3 1 . 1 . . . . 1 . . . . 1 . . . . . . 4 Combat Bots Only 5 | . 5 2 . 3 1 . . . . . . . . . . . . . . . . . . 2 Max Kills in Single Turn 2 | . 1 1 1 1 1 . 1 . . . . 1 . . . . 1 . . . . . . 2 Gunslinging . | . . . . . . . . . . . . . . . . . . . . . . . . . Exploded 2 | . . . . . . . . . . . . . . . . . . . . . . . . 2 Melee 1 | . . . . 1 1 . . . . . . . . . . . . . . . . . . . Uniques/NPCs Destroyed . | . . . . . . . . . . . . . . . . . . . . . . . . . Combat | -11 -10 -10 -9 -9 -8 -7 -6 -6 -6 -6 -5 -5 -5 -5 -5 -4 -4 -4 -4 -4 -3 -3 -2 -2 -------- Run | Yrd Mat Min Mat Min Mat Fac Fac Low Low Dat Pro Fac Upp Upp Zhi Pro Fac Upp Upp War Pro Res Res Tes Hostile Shots Fired 691 | . 19 6 18 78 13 54 23 . . . 38 3 2 . . 39 11 3 . . 4 87 4 289 Missed 314 | . 6 3 9 26 9 35 18 . . . 25 2 2 . . 19 10 2 . . 1 38 2 107 Damage Taken 7324 | . 154 41 107 436 32 277 82 . . . 198 18 . . . 413 19 23 . . 187 1260 56 4021 Core 2857 | . 22 . 61 224 6 81 35 . . . 33 . . . . 125 . . . . . 800 56 1414 Absorbed by Shields 7 | . . . . . . . . . . . . . . . . . 7 . . . . . . . Regen/Repaired (Parts) 185 | . . . . . 12 . . . . . . 97 . . . . 54 . . 22 . . . . Core Remaining (%) 79 | 100 . 91 . 28 98 88 . . . . 92 . . . . 79 . . . . 100 38 . . Volleys Fired 65 | . 11 3 . . . 1 . . . . . . . . . . . . . . . . . 50 Largest 2 | . 2 2 . . . 1 . . . . . . . . . . . . . . . . . 2 Hottest 190 | . 78 78 . . . 25 . . . . . . . . . . . . . . . . . 190 Shots Fired 90 | . 22 6 . . . 1 . . . . . . . . . . . . . . . . . 61 Gun 8 | . . . . . . 1 . . . . . . . . . . . . . . . . . 7 Cannon 78 | . 22 6 . . . . . . . . . . . . . . . . . . . . . 50 Launcher 4 | . . . . . . . . . . . . . . . . . . . . . . . . 4 Special . | . . . . . . . . . . . . . . . . . . . . . . . . . Kinetic 67 | . 22 6 . . . 1 . . . . . . . . . . . . . . . . . 38 Thermal 19 | . . . . . . . . . . . . . . . . . . . . . . . . 19 Explosive 4 | . . . . . . . . . . . . . . . . . . . . . . . . 4 Electromagnetic . | . . . . . . . . . . . . . . . . . . . . . . . . . Robot Hit Streak 7 | . 4 6 . . . . . . . . . . . . . . . . . . . . . 7 Robot Miss Streak 3 | . 1 . . . . . . . . . . . . . . . . . . . . . . 3 Penetration Max 1 | . . . . . . . . . . . . . . . . . . . . . . . . 1 Secondary Targets . | . . . . . . . . . . . . . . . . . . . . . . . . . Shots Hit Robots 96 | . 11 5 2 15 4 . 3 . . . 2 2 3 . 7 3 1 . . . . 1 . 37 Core Hits 45 | . 9 3 . 6 1 . . . . . . . 1 . 1 . . . . . . . . 24 Critical Kills . | . . . . . . . . . . . . . . . . . . . . . . . . . Critical Parts Destroyed 1 | . . . . . . . . . . . . . . . 1 . . . . . . . . . Critical Strikes 6 | . 1 . 1 . . . . . . . . . . . 1 . . . . . . . . 3 Blast 4 | . 1 . . . . . . . . . . . . . . . . . . . . . . 3 Smash 1 | . . . . . . . . . . . . . . . 1 . . . . . . . . . Sever 1 | . . . 1 . . . . . . . . . . . . . . . . . . . . . Melee Attacks 148 | . . . 2 27 15 25 21 . . . 12 18 3 . 8 5 5 . . . . 7 . . Impact 108 | . . . . . 11 25 21 . . . 12 18 3 . 8 5 5 . . . . . . . Slashing 40 | . . . 2 27 4 . . . . . . . . . . . . . . . . 7 . . Piercing . | . . . . . . . . . . . . . . . . . . . . . . . . . Sneak Attacks 4 | . . . . . 2 . 1 . . . . 1 . . . . . . . . . . . . Combat Hostiles . | . . . . . . . . . . . . . . . . . . . . . . . . . Follow-up Attacks . | . . . . . . . . . . . . . . . . . . . . . . . . . Damage Inflicted 4945 | . 253 107 91 535 183 . 257 . . . 286 181 273 . 706 187 80 . . . . 62 . 1744 Guns 114 | . . . . . . . . . . . . . . . . . . . . . . . . 114 Cannons 1660 | . 253 107 . . . . . . . . . . . . . . . . . . . . . 1300 Explosions 319 | . . . . . . . . . . . . . . . . . . . . . . . . 319 Melee 2841 | . . . 91 535 183 . 257 . . . 286 181 273 . 706 187 80 . . . . 62 . . Ramming 11 | . . . . . . . . . . . . . . . . . . . . . . . . 11 Kinetic 1020 | . 253 107 . . . . . . . . . . . . . . . . . . . . . 660 Thermal 754 | . . . . . . . . . . . . . . . . . . . . . . . . 754 Explosive 319 | . . . . . . . . . . . . . . . . . . . . . . . . 319 Electromagnetic . | . . . . . . . . . . . . . . . . . . . . . . . . . Impact 2079 | . . . . . 109 . 257 . . . 286 181 273 . 706 187 80 . . . . . . . Slashing 762 | . . . 91 535 74 . . . . . . . . . . . . . . . . 62 . . Piercing . | . . . . . . . . . . . . . . . . . . . . . . . . . Highest Corruption 4 | . . . 1 1 . . . . . . . 3 3 3 3 4 . . . . . . . 1 Average Corruption 2 | . . . 1 1 . . . . . . . 3 3 3 3 3 . . . . . . . 1 Corruption Purged . | . . . . . . . . . . . . . . . . . . . . . . . . . Corruption Blocked . | . . . . . . . . . . . . . . . . . . . . . . . . . Effects 18 | . . . 1 2 . . . . . . . 3 3 1 1 3 . . . . . . . 4 Message Errors 5 | . . . 1 1 . . . . . . . 1 . . . . . . . . . . . 2 Matter Fused 3 | . . . . . . . . . . . . 1 1 . . 1 . . . . . . . . Heat Flow Errors 2 | . . . . . . . . . . . . . 1 . . . . . . . . . . 1 Energy Discharges 1 | . . . . . . . . . . . . . . 1 . . . . . . . . . . Parts Rejected 1 | . . . . . . . . . . . . . . . . 1 . . . . . . . . Data Loss (minor) 4 | . . . . 1 . . . . . . . 1 1 . . 1 . . . . . . . . Data Loss (major) 1 | . . . . . . . . . . . . . . . 1 . . . . . . . . . Misfires 1 | . . . . . . . . . . . . . . . . . . . . . . . . 1 Overload Shots . | . . . . . . . . . . . . . . . . . . . . . . . . . Overflow Damage 1310 | . . . 22 48 39 . 190 . . . 254 136 128 . 431 30 25 . . . . . . 7 Projectiles 7 | . . . . . . . . . . . . . . . . . . . . . . . . 7 Explosions . | . . . . . . . . . . . . . . . . . . . . . . . . . Melee 1303 | . . . 22 48 39 . 190 . . . 254 136 128 . 431 30 25 . . . . . . . Knockbacks 16 | . 4 . . . . . 2 . . . . 2 . . . 1 . . . . . . . 7 Impact 5 | . . . . . . . 2 . . . . 2 . . . 1 . . . . . . . . Kinetic 9 | . 3 . . . . . . . . . . . . . . . . . . . . . . 6 Secondary 2 | . 1 . . . . . . . . . . . . . . . . . . . . . . 1 Self-Inflicted Damage 1 | . . . . . . . . . . . . . . . . . . . . . . . . 1 Shots . | . . . . . . . . . . . . . . . . . . . . . . . . . Rammed 1 | . . . . . . . . . . . . . . . . . . . . . . . . 1 Targets Rammed 3 | . . . . . . . . . . . . . . . . . . . . . . . . 3 Kicked 2 | . . . . . . . . . . . . . . . . . . . . . . . . 2 Crushed . | . . . . . . . . . . . . . . . . . . . . . . . . . Highest Temperature 289 | . 78 84 . . . 6 . . . . . . 165 . . . . . . . . 289 . 246 Average Temperature 70 | . 30 42 . . . 6 . . . . . . 93 . . . . . . . . 165 . 102 Received Heat Transfer 783 | . 84 21 45 9 . 39 9 . . . . 9 . . . . 20 . . . . 430 9 108 Siege Activations . | . . . . . . . . . . . . . . . . . . . . . . . . . Robots Corrupted 9 | . . . . . 2 . 2 . . . . 2 1 . 1 . 1 . . . . . . . Combat Hostiles 2 | . . . . . . . . . . . . . 1 . 1 . . . . . . . . . Parts Fried 17 | . . . . . 4 . 5 . . . . 3 1 . 3 . 1 . . . . . . . Impact Corruptions 40 | . . . . . 4 . 7 . . . 4 6 5 . 9 3 2 . . . . . . . Robots Melted . | . . . . . . . . . . . . . . . . . . . . . . . . . Combat Hostiles . | . . . . . . . . . . . . . . . . . . . . . . . . . Parts Melted 1 | . . . . . . . . . . . . . . . . . . . . . . . . 1 Heat Transferred 666 | . . . . . . . . . . . . . . . . . . . . . . . . 666 Parts Sabotaged . | . . . . . . . . . . . . . . . . . . . . . . . . . Parts Stolen . | . . . . . . . . . . . . . . . . . . . . . . . . . Parts Stripped . | . . . . . . . . . . . . . . . . . . . . . . . . . Power Chain Reactions . | . . . . . . . . . . . . . . . . . . . . . . . . . Alert | -11 -10 -10 -9 -9 -8 -7 -6 -6 -6 -6 -5 -5 -5 -5 -5 -4 -4 -4 -4 -4 -3 -3 -2 -2 ------- Run | Yrd Mat Min Mat Min Mat Fac Fac Low Low Dat Pro Fac Upp Upp Zhi Pro Fac Upp Upp War Pro Res Res Tes Peak Influence 929 | . 208 80 230 372 325 306 210 . . . . 929 . . . . 132 . . . . 674 384 288 Initial 803 | . . 14 31 89 144 56 149 . . . . 803 . . . . 28 . . . . 600 369 216 Average 241 | . 61 78 78 296 219 109 141 . . . . 786 . . . . 51 . . . . 648 369 203 Maximum Alert Level 3 | . 1 . 1 1 1 1 1 . . . . 3 . . . . . . . . . 2 1 1 Low Security (%) 59 | 100 98 100 95 14 49 88 83 . . . . . . . . . 100 . . . . . . 32 Level 1 24 | . 1 . 4 85 50 11 16 . . . . . . . . . . . . . . . 100 67 Level 2 7 | . . . . . . . . . . . . 26 . . . . . . . . . 100 . . Level 3 8 | . . . . . . . . . . . . 73 . . . . . . . . . . . . Level 4 . | . . . . . . . . . . . . . . . . . . . . . . . . . Level 5 . | . . . . . . . . . . . . . . . . . . . . . . . . . High Security . | . . . . . . . . . . . . . . . . . . . . . . . . . Max Security . | . . . . . . . . . . . . . . . . . . . . . . . . . Squads Dispatched 27 | . 2 . 2 . . 8 4 . . . . 2 . . . . 2 . . . . 1 . 6 Investigation 12 | . 1 . 1 . . 3 3 . . . . 1 . . . . 1 . . . . . . 2 Extermination 1 | . . . . . . 1 . . . . . . . . . . . . . . . . . . Reinforcement 13 | . 1 . 1 . . 4 1 . . . . 1 . . . . 1 . . . . 1 . 3 Assault 1 | . . . . . . . . . . . . . . . . . . . . . . . . 1 Garrison . | . . . . . . . . . . . . . . . . . . . . . . . . . Intercept . | . . . . . . . . . . . . . . . . . . . . . . . . . Searches Triggered 1 | . . . . . . . . . . . . 1 . . . . . . . . . . . . Data Miner Redirects 2 | . . . . . . . . . . . . . . . . . 1 . . . . . . 1 Construction Impeded . | . . . . . . . . . . . . . . . . . . . . . . . . . Haulers Reinforced . | . . . . . . . . . . . . . . . . . . . . . . . . . Active Scanning Responses . | . . . . . . . . . . . . . . . . . . . . . . . . . Cargo Convoy Interrupts . | . . . . . . . . . . . . . . . . . . . . . . . . . Stealth | -11 -10 -10 -9 -9 -8 -7 -6 -6 -6 -6 -5 -5 -5 -5 -5 -4 -4 -4 -4 -4 -3 -3 -2 -2 --------- Run | Yrd Mat Min Mat Min Mat Fac Fac Low Low Dat Pro Fac Upp Upp Zhi Pro Fac Upp Upp War Pro Res Res Tes Distress Signals 12 | . 2 . 1 . . 1 1 . . . 1 . . . . . 1 . . 1 . 1 2 1 Communications Jammed . | . . . . . . . . . . . . . . . . . . . . . . . . . Distress Signals . | . . . . . . . . . . . . . . . . . . . . . . . . . Times Spotted 223 | . 16 2 15 18 10 26 19 . 2 . 24 10 2 . . 10 12 2 . 22 10 11 3 9 Peak Tracking Total 16 | . 7 2 11 6 4 9 6 . 2 . 10 4 9 . . 7 10 7 . 16 8 7 3 4 Tactical Retreats 36 | . . . 2 2 3 6 3 . 1 . 5 4 2 . . 3 2 . . 2 . 1 . . Traps | -11 -10 -10 -9 -9 -8 -7 -6 -6 -6 -6 -5 -5 -5 -5 -5 -4 -4 -4 -4 -4 -3 -3 -2 -2 ------- Run | Yrd Mat Min Mat Min Mat Fac Fac Low Low Dat Pro Fac Upp Upp Zhi Pro Fac Upp Upp War Pro Res Res Tes Traps Triggered 6 | . . . . . . 2 1 . . . . 1 . . . . 1 . . . . . . 1 Indirectly . | . . . . . . . . . . . . . . . . . . . . . . . . . Trap Hack Attempts . | . . . . . . . . . . . . . . . . . . . . . . . . . Triggered . | . . . . . . . . . . . . . . . . . . . . . . . . . Disarmed . | . . . . . . . . . . . . . . . . . . . . . . . . . Reprogrammed . | . . . . . . . . . . . . . . . . . . . . . . . . . Reused . | . . . . . . . . . . . . . . . . . . . . . . . . . Traps Extracted . | . . . . . . . . . . . . . . . . . . . . . . . . . Installed . | . . . . . . . . . . . . . . . . . . . . . . . . . Triggered 11 | . . . . . . . . . . . . . . . . . . . . 11 . . . . Machines | -11 -10 -10 -9 -9 -8 -7 -6 -6 -6 -6 -5 -5 -5 -5 -5 -4 -4 -4 -4 -4 -3 -3 -2 -2 ---------- Run | Yrd Mat Min Mat Min Mat Fac Fac Low Low Dat Pro Fac Upp Upp Zhi Pro Fac Upp Upp War Pro Res Res Tes Machines Disabled 3 | . 1 . 1 . . . . . . . . . . . 1 . . . . . . . . . Max in Single Turn 1 | . 1 . . . . . . . . . . . . . 1 . . . . . . . . . Garrison Access 2 | . . . . . . . 1 . . . . . . . . . . . . . . . . 1 Machines Repaired . | . . . . . . . . . . . . . . . . . . . . . . . . . Machines Dismantled . | . . . . . . . . . . . . . . . . . . . . . . . . . Machines Sabotaged . | . . . . . . . . . . . . . . . . . . . . . . . . . Overloaded Fab Kills . | . . . . . . . . . . . . . . . . . . . . . . . . . Hacking | -11 -10 -10 -9 -9 -8 -7 -6 -6 -6 -6 -5 -5 -5 -5 -5 -4 -4 -4 -4 -4 -3 -3 -2 -2 --------- Run | Yrd Mat Min Mat Min Mat Fac Fac Low Low Dat Pro Fac Upp Upp Zhi Pro Fac Upp Upp War Pro Res Res Tes Machines Accessed 75 | . 3 . 5 1 8 10 12 1 . 4 . 7 1 . 9 . 3 1 . 3 . 3 . 4 Terminals 40 | . 2 . 5 . 6 7 7 . . . . 5 . . . . 2 . . . . 3 . 3 Fabricators 7 | . . . . . . 2 3 . . . . 1 . . . . . . . . . . . 1 Repair Stations 3 | . . . . . 1 . . . . . . 1 . . . . 1 . . . . . . . Recycling Units 1 | . 1 . . . . . . . . . . . . . . . . . . . . . . . Scanalyzers 2 | . . . . . 1 1 . . . . . . . . . . . . . . . . . . Garrison Access 2 | . . . . . . . 2 . . . . . . . . . . . . . . . . . Total Hacks 260 | . 7 . 15 1 27 27 34 1 . 28 . 28 1 . 48 . 12 1 . 7 . 12 . 11 Successful 178 | . 4 . 6 1 15 15 17 1 . 28 . 18 1 . 48 . 6 1 . 7 . 6 . 4 Failed 82 | . 3 . 9 . 12 12 17 . . . . 10 . . . . 6 . . . . 6 . 7 Catastrophic 11 | . . . . . . 6 1 . . . . 1 . . . . 1 . . . . . . 2 Database Lockouts . | . . . . . . . . . . . . . . . . . . . . . . . . . Manual 95 | . 4 . 12 . 15 19 13 . . . . 16 . . . . 7 . . 1 . 6 . 2 Terminals 126 | . 5 . 15 . 16 18 20 . . . . 24 . . . . 8 . . . . 12 . 8 Fabricators 22 | . . . . . . 6 11 . . . . 2 . . . . . . . . . . . 3 Repair Stations 10 | . . . . . 4 . . . . . . 2 . . . . 4 . . . . . . . Recycling Units 2 | . 2 . . . . . . . . . . . . . . . . . . . . . . . Scanalyzers 10 | . . . . . 7 3 . . . . . . . . . . . . . . . . . . Garrison Access 3 | . . . . . . . 3 . . . . . . . . . . . . . . . . . Terminal Hacks 118 | . 1 . 1 1 2 5 6 1 . 28 . 10 1 . 48 . 2 1 . 7 . 2 . 2 Record 55 | . . . . . . . . . . 11 . 4 . . 36 . . . . 2 . . . 2 Part Schematic 14 | . . . . . . 1 1 . . 8 . . . . 4 . . . . . . . . . Robot Schematic 6 | . . . . . . . . . . 6 . . . . . . . . . . . . . . Robot Analysis 5 | . 1 . . . . . . . . . . . . . 4 . . . . . . . . . Prototype ID Bank 13 | . . . . . 1 . 1 . . 3 . . . . 4 . . . . 4 . . . . Open Door 5 | . . . . 1 . . . 1 . . . . 1 . . . . 1 . 1 . . . . Open DSF 2 | . . . . . . 1 1 . . . . . . . . . . . . . . . . . Branch Access Points 3 | . . . . . . 1 1 . . . . 1 . . . . . . . . . . . . Terminal Index 4 | . . . . . 1 1 . . . . . 1 . . . . 1 . . . . . . . Fabricator Index 2 | . . . . . . . . . . . . 1 . . . . . . . . . 1 . . Recycling Unit Index 1 | . . . . . . . . . . . . . . . . . . . . . . 1 . . Alert Level 2 | . . . 1 . . . . . . . . . . . . . 1 . . . . . . . Dispatch Records 1 | . . . . . . . . . . . . 1 . . . . . . . . . . . . Maintenance Status 1 | . . . . . . . 1 . . . . . . . . . . . . . . . . . Reinforcement Status 1 | . . . . . . . . . . . . 1 . . . . . . . . . . . . Recall Investigation 2 | . . . . . . 1 1 . . . . . . . . . . . . . . . . . Zone Layout 1 | . . . . . . . . . . . . 1 . . . . . . . . . . . . Fabricator Hacks 11 | . . . . . . 2 6 . . . . 2 . . . . . . . . . . . 1 Load Schematic 6 | . . . . . . 1 3 . . . . 1 . . . . . . . . . . . 1 Build 5 | . . . . . . 1 3 . . . . 1 . . . . . . . . . . . . Repair Station Hacks 8 | . . . . . 4 . . . . . . 2 . . . . 2 . . . . . . . Scan Component 4 | . . . . . 2 . . . . . . 1 . . . . 1 . . . . . . . Repair 4 | . . . . . 2 . . . . . . 1 . . . . 1 . . . . . . . Recycling Unit Hacks 2 | . 2 . . . . . . . . . . . . . . . . . . . . . . . Report Inventory 2 | . 2 . . . . . . . . . . . . . . . . . . . . . . . Scanalyzer 10 | . . . . . 7 3 . . . . . . . . . . . . . . . . . . Insert Component 5 | . . . . . 4 1 . . . . . . . . . . . . . . . . . . Analyze 5 | . . . . . 3 2 . . . . . . . . . . . . . . . . . . Garrison Access Hacks 1 | . . . . . . . 1 . . . . . . . . . . . . . . . . . Seal Access 1 | . . . . . . . 1 . . . . . . . . . . . . . . . . . Unauthorized Hacks 28 | . 1 . 5 . 2 5 4 . . . . 4 . . . . 2 . . . . 4 . 1 Terminals 24 | . 1 . 5 . 2 2 3 . . . . 4 . . . . 2 . . . . 4 . 1 Assimilate 5 | . . . 1 . . . . . . . . 2 . . . . . . . . . 2 . . Botnet 19 | . 1 . 4 . 2 2 3 . . . . 2 . . . . 2 . . . . 2 . 1 Fabricators 4 | . . . . . . 3 1 . . . . . . . . . . . . . . . . . Fabnet 2 | . . . . . . 2 . . . . . . . . . . . . . . . . . . Haulers 2 | . . . . . . 1 1 . . . . . . . . . . . . . . . . . Repair Stations . | . . . . . . . . . . . . . . . . . . . . . . . . . Recycling Units . | . . . . . . . . . . . . . . . . . . . . . . . . . Scanalyzers . | . . . . . . . . . . . . . . . . . . . . . . . . . Garrison Access . | . . . . . . . . . . . . . . . . . . . . . . . . . Data Cores Recovered 2 | . . . . . . . 1 . . . . 1 . . . . . . . . . . . . Used . | . . . . . . . . . . . . . . . . . . . . . . . . . Hacking Detections 45 | . 3 . 5 . 6 9 8 . . . . 5 . . . . 3 . . . . 2 . 4 Full Trace Events 14 | . 1 . 2 . 1 3 3 . . . . 1 . . . . 1 . . . . . . 2 Feedback Events 2 | . . . 1 . . . . . . . . . . . . . . . . . . . . 1 Corruption 2 | . . . 1 . . . . . . . . . . . . . . . . . . . . 1 Feedback Blocked . | . . . . . . . . . . . . . . . . . . . . . . . . . Robot Schematics Acquired 8 | . . . . . . . . . . 6 . . . . . . . . . . . . . 2 Robots Built . | . . . . . . . . . . . . . . . . . . . . . . . . . Authchips . | . . . . . . . . . . . . . . . . . . . . . . . . . Time . | . . . . . . . . . . . . . . . . . . . . . . . . . Total Robot Build Rating . | . . . . . . . . . . . . . . . . . . . . . . . . . Part Schematics Acquired 27 | . . . . . 3 2 1 . . 8 . . . . 4 . . . . . . . . 9 Parts Built 8 | . . . . . . 1 5 . . . . 2 . . . . . . . . . . . . Authchips . | . . . . . . . . . . . . . . . . . . . . . . . . . Time 249 | . . . . . . 73 140 . . . . 36 . . . . . . . . . . . . Total Part Build Rating 22 | . . . . . . 3 13 . . . . 6 . . . . . . . . . . . . Parts Repaired 4 | . . . . . 2 . . . . . . 1 . . . . 1 . . . . . . . Time 158 | . . . . . 76 . . . . . . 38 . . . . 44 . . . . . . . Parts Recycled . | . . . . . . . . . . . . . . . . . . . . . . . . . Recycled Matter . | . . . . . . . . . . . . . . . . . . . . . . . . . Retrieved Matter . | . . . . . . . . . . . . . . . . . . . . . . . . . Retrieved Components . | . . . . . . . . . . . . . . . . . . . . . . . . . Parts Scanalyzed 4 | . . . . . 3 1 . . . . . . . . . . . . . . . . . . Part Schematics Acquired 4 | . . . . . 3 1 . . . . . . . . . . . . . . . . . . Parts Damaged 1 | . . . . . 1 . . . . . . . . . . . . . . . . . . . Bothacking | -11 -10 -10 -9 -9 -8 -7 -6 -6 -6 -6 -5 -5 -5 -5 -5 -4 -4 -4 -4 -4 -3 -3 -2 -2 ------------ Run | Yrd Mat Min Mat Min Mat Fac Fac Low Low Dat Pro Fac Upp Upp Zhi Pro Fac Upp Upp War Pro Res Res Tes Used RIF Installer . | . . . . . . . . . . . . . . . . . . . . . . . . . Robots Hacked 1 | . . . . . . . 1 . . . . . . . . . . . . . . . . . Non-combat . | . . . . . . . . . . . . . . . . . . . . . . . . . Combat 1 | . . . . . . . 1 . . . . . . . . . . . . . . . . . Robot Hacks Applied . | . . . . . . . . . . . . . . . . . . . . . . . . . Relay Couplers Released 3 | . . . . . . . . . . . . . . . . . . . . . . . . 3 Machine Destruction 3 | . . . . . . . . . . . . . . . . . . . . . . . . 3 Fabnet Peak Effective % 6 | . . . . . . . 6 6 6 6 2 2 2 2 2 . . . . . . . . . Autooverrided 1 | . . . . . . . 1 . . . . . . . . . . . . . . . . . Robots Rewired . | . . . . . . . . . . . . . . . . . . . . . . . . . Allies Hacked . | . . . . . . . . . . . . . . . . . . . . . . . . . Hacks Repelled . | . . . . . . . . . . . . . . . . . . . . . . . . . Allies | -11 -10 -10 -9 -9 -8 -7 -6 -6 -6 -6 -5 -5 -5 -5 -5 -4 -4 -4 -4 -4 -3 -3 -2 -2 -------- Run | Yrd Mat Min Mat Min Mat Fac Fac Low Low Dat Pro Fac Upp Upp Zhi Pro Fac Upp Upp War Pro Res Res Tes Total Allies 10 | . . 3 . 2 . . 1 . . . . 2 . . . . . . . . . 2 . . Largest Group 3 | . . 3 3 2 . . 1 . . . . 1 . . . . . . . . . 1 . . Highest-Rated Group 45 | . . 40 40 45 . . 29 . . . . 26 . . . . . . . . . 45 . . Highest-Rated Ally 45 | . . 16 16 31 . . 29 . . . . 26 . . . . . . . . . 45 . . Total Orders . | . . . . . . . . . . . . . . . . . . . . . . . . . Ally Attacks 42 | . . . 30 9 . . 3 . . . . . . . . . . . . . . . . . Total Damage 574 | . . . 343 171 . . 60 . . . . . . . . . . . . . . . . . Kills 8 | . . . 4 4 . . . . . . . . . . . . . . . . . . . . Allies Corrupted . | . . . . . . . . . . . . . . . . . . . . . . . . . Allies Melted 1 | . . . . . . . . . . . . . . . . . . . . 1 . . . . Intel | -11 -10 -10 -9 -9 -8 -7 -6 -6 -6 -6 -5 -5 -5 -5 -5 -4 -4 -4 -4 -4 -3 -3 -2 -2 ------- Run | Yrd Mat Min Mat Min Mat Fac Fac Low Low Dat Pro Fac Upp Upp Zhi Pro Fac Upp Upp War Pro Res Res Tes Robot Analysis Total 5 | . 1 . . . . . . . . . . . . . 4 . . . . . . . . . Derelict Logs Recovered 12 | . . 2 . 1 . . . 1 2 . 2 . 2 . . . . 2 . . . . . . Drone Launches . | . . . . . . . . . . . . . . . . . . . . . . . . . Drone Recoveries . | . . . . . . . . . . . . . . . . . . . . . . . . . Decoded 0b10 Intel 28 | . . . . . . . . . . . . 16 . . . . 10 . . . . 2 . . Traps 2 | . . . . . . . . . . . . 1 . . . . 1 . . . . . . . Emergency Access 3 | . . . . . . . . . . . . . . . . . 3 . . . . . . . Items 15 | . . . . . . . . . . . . 11 . . . . 4 . . . . . . . Machines 3 | . . . . . . . . . . . . 2 . . . . 1 . . . . . . . Patrols 3 | . . . . . . . . . . . . 2 . . . . 1 . . . . . . . Guards 2 | . . . . . . . . . . . . . . . . . . . . . . 2 . . Exploration | -11 -10 -10 -9 -9 -8 -7 -6 -6 -6 -6 -5 -5 -5 -5 -5 -4 -4 -4 -4 -4 -3 -3 -2 -2 ------------- Run | Yrd Mat Min Mat Min Mat Fac Fac Low Low Dat Pro Fac Upp Upp Zhi Pro Fac Upp Upp War Pro Res Res Tes Turns Passed 6359 | 64 442 281 241 371 404 615 610 94 64 23 286 543 241 23 147 120 311 97 67 361 72 209 80 593 Spaces Moved 11044 | 39 210 225 337 754 477 1266 1203 355 246 86 786 985 383 66 249 334 399 317 212 788 267 467 126 467 Core 260 | 10 . . 1 6 . . . . . . . . . . 4 . . . . . . 105 31 103 Treads . | . . . . . . . . . . . . . . . . . . . . . . . . . Legs 582 | 29 210 225 21 . . . . . . . . . . . . . . . . . . . . 97 Wheels . | . . . . . . . . . . . . . . . . . . . . . . . . . Hover 273 | . . . . . . . . . . . . . . . 7 . . . . . . 1 95 170 Flight 9929 | . . . 315 748 477 1266 1203 355 246 86 786 985 383 66 238 334 399 317 212 788 267 361 . 97 Fastest Speed 24 | 50 120 120 32 32 30 26 26 26 26 26 26 29 30 30 30 30 30 30 30 27 27 24 40 29 Average Speed 36 | 137 120 120 42 35 33 27 27 26 26 26 26 29 30 30 37 30 34 30 30 28 27 30 46 80 Slowest Speed 680 | 250 120 120 250 200 34 30 29 26 26 26 29 30 30 30 350 30 109 30 30 109 27 100 59 680 Overloaded Moves . | . . . . . . . . . . . . . . . . . . . . . . . . . Propulsion Burnouts . | . . . . . . . . . . . . . . . . . . . . . . . . . Robots Hopped 8 | . . . 2 . . . . . . . . . . . . . . . . 4 . . . 2 Cave-ins Triggered . | . . . . . . . . . . . . . . . . . . . . . . . . . Teleports 1 | . . . . . . . . . . . . . . . 1 . . . . . . . . . Exploration Rate (%) 45 | 4 44 51 40 89 42 26 36 61 60 75 89 30 62 11 63 59 10 53 48 94 49 10 4 38 Regions Visited 24 Branch Regions 15 Pre-discovered Areas 6 | . . 1 . . . . . . . 1 . . . . 3 . . 1 . . . . . . Known Exits Taken 20 | . . . 1 1 1 1 1 1 1 1 1 1 1 1 1 1 1 1 1 1 1 . 1 . Unknown Exits Taken 4 | 1 1 1 . . . . . . . . . . . . . . . . . . . 1 . . Scrap Searched 16 | . . 2 . 1 . . . 3 3 . 1 . 2 1 . . . 1 1 . 1 . . . Spaces Dug 47 | . . . . . 7 8 10 . . . 5 10 . . . . 4 . . . . 3 . . Terrain Destroyed 133 | . 1 1 . . 7 8 10 . . . 5 10 . . . . 4 . . . . 3 . 84 Melee 47 | . . . . . 7 8 10 . . . 5 10 . . . . 4 . . . . 3 . . Projectile 17 | . 1 1 . . . . . . . . . . . . . . . . . . . . . 15 AOE 69 | . . . . . . . . . . . . . . . . . . . . . . . . 69 Terrain Rammed . | . . . . . . . . . . . . . . . . . . . . . . . . . Walls Destroyed . | . . . . . . . . . . . . . . . . . . . . . . . . . Machines Disabled . | . . . . . . . . . . . . . . . . . . . . . . . . . Actions | -11 -10 -10 -9 -9 -8 -7 -6 -6 -6 -6 -5 -5 -5 -5 -5 -4 -4 -4 -4 -4 -3 -3 -2 -2 --------- Run | Yrd Mat Min Mat Min Mat Fac Fac Low Low Dat Pro Fac Upp Upp Zhi Pro Fac Upp Upp War Pro Res Res Tes Total 13053 | 46 378 231 432 829 701 1492 1450 356 245 85 844 1207 503 68 288 345 565 318 215 917 266 517 146 609 Wait 1475 | . 143 . 69 32 186 180 183 . . . 44 191 117 . . 6 136 . . 99 . 34 16 39 Move 11006 | 38 209 224 332 753 476 1265 1202 354 245 85 785 984 382 65 248 333 398 316 211 781 266 466 125 463 Hop 6 | . . . 2 . . . . . . . . . . . . . . . . 2 . . . 2 Pick Up 54 | 2 6 2 2 7 7 4 7 1 . . . 3 1 1 2 . 1 1 . 3 . . 1 3 Fast Attach 104 | 6 4 . 7 1 4 6 5 . . . . 4 . . 14 1 3 . 1 14 . 4 3 27 Attach 41 | . 1 . 4 6 5 4 3 . . . 2 3 . . 1 . 2 1 . . . 4 . 5 Detach 14 | . 1 . 2 1 1 1 . . . . . 1 . . . . 1 . 1 1 . 1 . 3 Swap 12 | . . . 1 . 1 2 3 . . . 1 1 . 1 1 . . . . 1 . . . . Drop 80 | . 3 2 11 2 6 4 8 1 . . . 2 . 1 14 . 2 . 2 16 . 1 1 4 Fire 65 | . 11 3 . . . 1 . . . . . . . . . . . . . . . . . 50 Melee 148 | . . . 2 27 15 25 21 . . . 12 18 3 . 8 5 5 . . . . 7 . . Ram 1 | . . . . . . . . . . . . . . . . . . . . . . . . 1 Kick 2 | . . . . . . . . . . . . . . . . . . . . . . . . 2 Crush . | . . . . . . . . . . . . . . . . . . . . . . . . . Escape Stasis 45 | . . . . . . . 18 . . . . . . . . . 17 . . . . . . 10 Rewire . | . . . . . . . . . . . . . . . . . . . . . . . . . Trap . | . . . . . . . . . . . . . . . . . . . . . . . . . Miscellaneous . | . . . . . . . . . . . . . . . . . . . . . . . . . Route ------- -11/Scrapyard -10/Materials (discovered 2 exits: *Mat / [*Min]) -10/Mines -9/Materials (discovered 2 exits: *Min x2) -9/Mines (discovered 2 exits: *Mat x2) -8/Materials -7/Factory (discovered 4 exits: *Fac / Sto / Low x2) -6/Factory (discovered 2 exits: *Low x2) -6/Lower Caves -6/Lower Caves -6/Data Miner -5/Proximity Caves -5/Factory (discovered 6 exits: *Fac x4 / *Upp x2) -5/Upper Caves -5/Upper Caves -5/Zhirov -4/Proximity Caves -4/Factory -4/Upper Caves -4/Upper Caves -4/Warlord -3/Proximity Caves -3/Research -2/Research (discovered 2 exits: [*Acc] / *Tes) -2/Testing History --------- Turn | Location | Event 10 | -11/Scrapyard | Discovered new exit (range 16) 65 | -11/Scrapyard | Entered Materials 240 | -10/Materials | Discovered new exit (range 13) 302 | -10/Materials | Build established: Mutant 499 | -10/Materials | Discovered new exit (range 6) 507 | -10/Materials | Entered Mines 558 | -10/Mines | Learned Materials security intel 566 | -10/Mines | Learned location of Mines (-9) 580 | -10/Mines | Discovered new exit (range 10) 582 | -10/Mines | A weapon hastily lodged in a ceiling crevice suddenly fell to the ground 607 | -10/Mines | Assisted by bots powering up and referring to "LRC-V3" 685 | -10/Mines | Found a hidden stash of uninstalled traps 788 | -10/Mines | Entered Materials 788 | -9/Materials | Accompanied by 3 allies 788 | -9/Materials | Evolved 2 slots: Utility x2 837 | -9/Materials | Discovered new exit (range 16) 954 | -9/Materials | Discovered new exit (range 16) 958 | -9/Materials | Identified exit to Mines 1029 | -9/Materials | Entered Mines 1058 | -9/Mines | Discovered new exit (range 7) 1170 | -9/Mines | Core integrity fell below 50% 1207 | -9/Mines | Lost 7 parts (1p4n2u) 1309 | -9/Mines | Learned location of 1 exit from Lower Caves 1337 | -9/Mines | Discovered new exit (range 8) 1346 | -9/Mines | Found the Drone Emporium 1353 | -9/Mines | Identified exit to Materials 1400 | -9/Mines | Entered Materials 1400 | -8/Materials | Evolved 2 slots: Propulsion x1, Utility x1 1464 | -8/Materials | Repaired VTOL Module 1591 | -8/Materials | Build established: Scavenger-Mutant 1675 | -8/Materials | Repaired Broken VTOL Module 1783 | -8/Materials | Discovered new exit (range 18) 1799 | -8/Materials | Identified exit to Factory 1804 | -8/Materials | Entered Factory 1804 | -7/Factory | Evolved 2 slots: Propulsion x1, Utility x1 2043 | -7/Factory | Build established: Sprinter 2121 | -7/Factory | Identified exit to Storage 2121 | -7/Factory | Identified exit to Lower Caves 2210 | -7/Factory | Fabricated Hacking Suite? 2405 | -7/Factory | Discovered new exit (range 19) 2411 | -7/Factory | Identified exit to Factory 2419 | -7/Factory | Entered another Factory area 2419 | -6/Factory | Evolved 2 slots: Power x1, Utility x1 2705 | -6/Factory | Fabricated Hacking Suite (x1) 2724 | -6/Factory | Build established: Hacker-Sprinter 2818 | -6/Factory | Fabricated VTOL Module (x2) 2933 | -6/Factory | Identified exit to Lower Caves 2947 | -6/Factory | Spotted B-75 Beast 2984 | -6/Factory | Fabricated Cesium-ion Thruster (x2) 3029 | -6/Factory | Entered Lower Caves 3030 | -6/Lower Caves | Identified exit to Lower Caves 3033 | -6/Lower Caves | Encountered a Warlord checkpoint 3072 | -6/Lower Caves | Learned Factory terminal intel 3123 | -6/Lower Caves | Entered another Lower Caves area 3183 | -6/Lower Caves | Learned Factory non-interactive machine intel 3185 | -6/Lower Caves | Learned 8 Factory zone layouts 3186 | -6/Lower Caves | Discovered new exit (range 5) 3187 | -6/Lower Caves | Identified exit to Data Miner 3187 | -6/Lower Caves | Entered Data Miner 3187 | -6/Data Miner | Discovered new exit (range 6) 3189 | -6/Data Miner | Identified exit to Proximity Caves 3192 | -6/Data Miner | Met Data Miner 3199 | -6/Data Miner | Learned location of Section 7 (-3) 3199 | -6/Data Miner | Acquired the access code to Warlord's prototype stash 3203 | -6/Data Miner | Received God Mode back door access code from Data Miner 3210 | -6/Data Miner | Entered Proximity Caves 3212 | -5/Proximity Caves | Spotter reported a threat 3213 | -5/Proximity Caves | Spotter reported a threat 3215 | -5/Proximity Caves | Learned location of 1 exit from Factory 3217 | -5/Proximity Caves | Learned location of 1 exit from Factory 3266 | -5/Proximity Caves | Spotter reported a threat 3430 | -5/Proximity Caves | Spotter reported a threat 3483 | -5/Proximity Caves | Spotter reported a threat 3490 | -5/Proximity Caves | Discovered new exit (range 20) 3495 | -5/Proximity Caves | Identified exit to Factory 3496 | -5/Proximity Caves | Entered Factory 3496 | -5/Factory | Evolved 2 slots: Utility x2 3497 | -5/Factory | Identified exit to Factory 3499 | -5/Factory | Loaded intel: 260 non-interactive machine locations 3500 | -5/Factory | Loaded intel: 26 terminal locations 3500 | -5/Factory | Lost 3 parts (2n1u) 3623 | -5/Factory | Spotted B-75 Beast 3737 | -5/Factory | Repaired Hvy. Flail 3796 | -5/Factory | Search patrols dispatched 3883 | -5/Factory | Discovered exit to Factory (range 19) 3988 | -5/Factory | Fabricated Cesium-ion Thruster (x2) 4016 | -5/Factory | Discovered exit to Factory (range 21) 4020 | -5/Factory | Discovered new exit (range 15) 4033 | -5/Factory | Build established: Hacker-Ninja 4035 | -5/Factory | Identified exit to Upper Caves 4039 | -5/Factory | Entered Upper Caves 4230 | -5/Upper Caves | Encountered a Warlord checkpoint 4232 | -5/Upper Caves | Identified exit to Upper Caves 4249 | -5/Upper Caves | Learned Factory non-interactive machine intel 4280 | -5/Upper Caves | Entered another Upper Caves area 4299 | -5/Upper Caves | Discovered new exit (range 14) 4303 | -5/Upper Caves | Identified exit to Zhirov 4303 | -5/Upper Caves | Entered Zhirov 4303 | -5/Zhirov | Discovered new exit (range 3) 4304 | -5/Zhirov | Identified exit to Proximity Caves 4312 | -5/Zhirov | Met Zhirov 4321 | -5/Zhirov | Learned location of Quarantine (-3) 4321 | -5/Zhirov | Learned location of Testing (-2) 4321 | -5/Zhirov | Learned location of Command (-1) 4327 | -5/Zhirov | Zhirov requested help retrieving the SGEMP Prototype 4334 | -5/Zhirov | Found Alien Artifact 4339 | -5/Zhirov | Identified Integrated Dissipator 4339 | -5/Zhirov | Installed Integrated Dissipator, increased core heat dissipation (+20) 4341 | -5/Zhirov | Found Alien Artifact 4341 | -5/Zhirov | Identified Transdimensional Reconstructor 4341 | -5/Zhirov | Warped through subspace 4450 | -5/Zhirov | Entered Proximity Caves 4498 | -4/Proximity Caves | Spotted B-86 Titan 4522 | -4/Proximity Caves | Attracted the attention of an 0b10 checkpoint 4570 | -4/Proximity Caves | Discovered exit to Factory (range 3) 4570 | -4/Proximity Caves | Entered Factory 4570 | -4/Factory | Evolved 2 slots: Utility x2 4571 | -4/Factory | Loaded intel: 147 non-interactive machine locations 4665 | -4/Factory | Repaired Cld. Nuclear Pulse Thruster 4693 | -4/Factory | Incoming investigation squad redirected 4856 | -4/Factory | Discovered new exit (range 8) 4858 | -4/Factory | Identified exit to Upper Caves 4881 | -4/Factory | Entered Upper Caves 4949 | -4/Upper Caves | Attracted the attention of an 0b10 outpost 4971 | -4/Upper Caves | Learned location of Armory (-4) 4977 | -4/Upper Caves | Discovered new exit (range 5) 4978 | -4/Upper Caves | Identified exit to Upper Caves 4978 | -4/Upper Caves | Entered another Upper Caves area 5023 | -4/Upper Caves | Encountered a Warlord checkpoint 5041 | -4/Upper Caves | Discovered new exit (range 13) 5042 | -4/Upper Caves | Spotted B-86 Titan 5044 | -4/Upper Caves | Identified exit to Warlord 5045 | -4/Upper Caves | Entered Warlord 5119 | -4/Warlord | Visited the Vortex Lab 5128 | -4/Warlord | Warlord's base attacked by MAIN.C 5145 | -4/Warlord | Found Prototype Special Weapon 5145 | -4/Warlord | Identified RU-N14's Throwing Claymores v3 5171 | -4/Warlord | Met Warlord 5188 | -4/Warlord | Opened Warlord's prototype stash 5193 | -4/Warlord | Found Prototype Reactor 5193 | -4/Warlord | Identified Vortex Chain Reactor 5227 | -4/Warlord | Found Prototype Device 5227 | -4/Warlord | Identified System Purifier 5232 | -4/Warlord | Found Prototype Device 5232 | -4/Warlord | Identified Exp. Cloaking Device 5333 | -4/Warlord | Warlord forces counterattacked 5403 | -4/Warlord | Discovered new exit (range 12) 5406 | -4/Warlord | Identified exit to Proximity Caves 5406 | -4/Warlord | Entered Proximity Caves 5410 | -3/Proximity Caves | Spotter reported a threat 5415 | -3/Proximity Caves | Lost 4 allies 5416 | -3/Proximity Caves | Spotter reported a threat 5463 | -3/Proximity Caves | Spotter reported a threat 5472 | -3/Proximity Caves | Spotter reported a threat 5474 | -3/Proximity Caves | Discovered new exit (range 22) 5478 | -3/Proximity Caves | Identified exit to Research 5478 | -3/Proximity Caves | Entered Research 5478 | -3/Research | Evolved 2 slots: Propulsion x1, Utility x1 5493 | -3/Research | Discovered new exit (range 10) 5504 | -3/Research | Spotted B-86 Titan 5624 | -3/Research | Released all parts (13) 5653 | -3/Research | Lost 4 parts (1p2u1w) 5668 | -3/Research | Core integrity fell below 50% 5687 | -3/Research | Entered another Research area 5687 | -2/Research | Warlord forces began assault on 0b10 5687 | -2/Research | Evolved 2 slots: Utility x2 5688 | -2/Research | Identified exit to Testing 5753 | -2/Research | Found Prototype Processor 5764 | -2/Research | Discovered new exit (range 10) 5767 | -2/Research | Entered Testing 5816 | -2/Testing | Identified Exp. Signal Interpreter 5923 | -2/Testing | Build established: Mutant 5988 | -2/Testing | Incoming assault squad redirected 6082 | -2/Testing | Lost 9 parts (2p4n2u1w) 6084 | -2/Testing | Core integrity fell below 50% 6140 | -2/Testing | Scanned by Researcher 6310 | -2/Testing | Lost 10 parts (2p3n2u3w) 6313 | -2/Testing | Core integrity fell below 20% 6360 | -2/Testing | Destroyed by H-88 Terminator with Heavy Machine Gun Last Messages --------------- 06326_ Penetrated by Slug. 06326_ Slug penetrates Wall. 06328_ H-88 Terminator destroyed. 06329_ Wall collapses. 06331_ Penetrated by Slug. 06331_ Enh. Nova Cannon destroyed. 06334_ Slug penetrates Door. 06334_ Slug penetrates Wall. 06335_ Acquired Lgt. Quantum Reactor. 06337_ Penetrated by Slug. 06338_ Acquired 99 matter. 06340_ Penetrated by Slug. 06344_ U-05 Engineer builds a Door. 06346_ Penetrated by Slug. 06348_ U-05 Engineer builds a Wall. 06352_ Slammed into R-10 Processor. 06352_ Slug penetrates Wall. 06352_ Terrain Scan Processor destroyed. 06352_ Slug penetrates Wall. 06360_ Penetrated by Slug. Map ----- +----------------------------------------------------+ | # #?### ## "###### "#????# ?????????? | | + #?# ! #??? ???????? | | # # # | % ###? ####???? | | # # # = # #### | | # ### #### | | # T# ########???? | | # ""# ##??????????? | | #### ## ##????????????? """ | | #### ##?????????????? ! """ | | ##???????????????# ! """ | | #### ##???????????????# """ | | ???# #??????#?????????# """ | | ???#########+######## #?????? ????????## """ | | ?????????? ## #??# """ ????#??#" ^ """ | | ?????????? ## #??# """ ??? #??## | | ??????????""" """" ## #??# """ ??" #??## | | ??????????""" """" ##/###? ?? #?## | | ??????????""" """" # ! #?? ? ### !"" | | ???????????"" """? # $*|#??? ?# # =%! ! | | ????????????? """? # !%=#???? ???# # ! G | | ?????????????? ????# %=$#??###+##???# #%% ! "" | | ???????????????????# ! ####$$=%########% %% "" | | ???????????????????# +% "" = % %%% | | ?????????????????? # #R## T" %! % |!%= | | ?????????????????? # # ## !! #### * # | | ?????????????????#?# #@###! ###### # ## # | | ??????????????????#######h### !# ## #? # | | ??????????????????# % " # ! #? ##? # | | ??????????????????# / + #?##??? # | | ??????????????????# # # #?????? # | | ??????????????????# !# ######+####?????? # | | ??????????????????########### #????????????????? | | ???????????????????????????? ?????????????????? | | ??????????????????????????? ????????????????? | | ??????????????????????????#+######???????????????? | | ?????????????????????????????????????????????????? | | ?????????????????????????????????????????????????? | | ?????????????????????????????????????????????????? | | ?????????????????????????????????????????????????? | | ?????????????????????????????????????????????????? | | ?????????????????????????????????????????????????? | | ?????????????????????????????????????????????????? | | ?????????????????????????????????????????????????? | | ?????????????????????????????????????????????????? | | ?????????????????????????????????????????????????? | | ?????????????????????????????????????????????????? | | ?????????????????????????????????????????????????? | | ?????????????????????????????????????????????????? | | ?????????????????????????????????????????????????? | | ?????????????????????????????????????????????????? | +----------------------------------------------------+ Best States ------------- Heat Dissipation 119 Energy Generation 41 Energy Capacity 360 Matter Stores 300 Matter Capacity 300 Sight Range 22 Robot Scan Range 16 Terrain Scan Range 14 Terrain Scan Density 85 ECM Strength 2 Cloak Strength 4 Armor Coverage 375 Evasion (%) 75 Matter Filtering 50 Kinecelleration 40 Offensive Hacking 28 Defensive Hacking 20 Item Schematics ----------------- Terrain Scanner | -8/Materials | Scanalyzed Enh. Autogun | -8/Materials | Scanalyzed VTOL Module | -8/Materials | Scanalyzed Hacking Suite | -7/Factory | Hacked System Shield | -7/Factory | Scanalyzed Cesium-ion Thruster | -6/Factory | Hacked Combat Drone Bay | -6/Data Miner | Free Lgt. Regenerative Plating | -6/Data Miner | Free Enh. Flexi-carbon Leg | -6/Data Miner | Free Imp. Matter Compressor | -6/Data Miner | Free Enh. Coil Gun | -6/Data Miner | Free Imp. Heavy Treads | -6/Data Miner | Free Adv. Power Amplifier | -6/Data Miner | Free Hvy. Gauss Cannon | -6/Data Miner | Free Assault Drone Bay | -5/Zhirov | Free Exp. Heat Sink | -5/Zhirov | Free Exp. Optical Array | -5/Zhirov | Free Imp. Arc Thrower | -5/Zhirov | Free Mni. Fusion Reactor | -2/Testing | Archive Exp. Power Amplifier | -2/Testing | Archive Tesla Bomb Launcher | -2/Testing | Archive Diametric Drive | -2/Testing | Archive System Purifier | -2/Testing | Archive Exp. Thermal Defense Suite | -2/Testing | Archive Quantum Shading Machine | -2/Testing | Archive Exp. Q-thruster | -2/Testing | Archive Exp. Force Field | -2/Testing | Archive Robot Schematics ------------------ B-48 Gladiator | -6/Data Miner | Free L-61 Swordsman | -6/Data Miner | Free E-15 Imp | -6/Data Miner | Free H-66 Slayer | -6/Data Miner | Free R-10 Processor | -6/Data Miner | Free G-67 Veteran | -6/Data Miner | Free S-43 Plague | -2/Testing | Archive A-02 Transporter | -2/Testing | Archive Fabricated ------------ Hacking Suite | x1 | -7/Factory Hacking Suite | x1 | -6/Factory VTOL Module | x2 | -6/Factory Cesium-ion Thruster | x2 | -6/Factory Cesium-ion Thruster | x2 | -5/Factory Alien Tech Used ----------------- Integrated Dissipator Transdimensional Reconstructor Achievements -------------- Adventurer Alien Tech Charge!!! Explorer Prolific Hacker Reappropriation Subspace Traveler The Science Guy Challenges ------------ None Game ------ Seed WeightGyrokineticBrace Manual? 0 Play Time 02:29:39 Cumulative 29.0 hours Start 2025.03.28 @ 20:31:05 End 2025.03.28 @ 23:05:18 Sessions 1 Manual Loads 0 Difficulty Rogue Special Mode None Game No. 46 Rogue 46 Adventurer 0 Explorer 0 Win Type - Total 0 Types 0/0/0/0/0/0/0/0/0 Lore% 26 Gallery% 31 Achievement% 30 Wizard Run 0 Options --------- Layout 1 ASCII 0 Keyboard 0 Movement Numpad Keybinds 0 Fullscreen 1 Font 32/SmallcapsGlow Map View 50x35 Zoom Use 0% Tactical HUD 1 Map Filters NONE Filters NONE Steam 1 RUN: 7b4a0073-a7db-4428-9583-74c242d7baf4